[Event "Early-Titled-Tuesday-Blitz-October-17-2023"]
[Site "Chess.com"]
[Date "2023.10.17"]
[Round "4"]
[White "jraosam"]
[Black "eightbyeightchess"]
[Result "0-1"]
[WhiteElo "2074"]
[BlackElo "2436"]
[TimeControl "180+1"]
[EndTime "8:41:17 PDT"]
[Termination "eightbyeightchess won by resignation"]

1. d4 {[%clk 0:02:59.7]} 1... Nf6 {[%clk 0:02:59.2]} 2. c4 {[%clk 0:02:58.3]}
2... g6 {[%clk 0:02:59.3]} 3. Nc3 {[%clk 0:02:56.8]} 3... Bg7 {[%clk 0:02:55.8]}
4. e4 {[%clk 0:02:57]} 4... d6 {[%clk 0:02:53.8]} 5. Nf3 {[%clk 0:02:57.4]} 5...
O-O {[%clk 0:02:46.4]} 6. Bg5 {[%clk 0:02:56.7]} 6... e5 {[%clk 0:02:36.7]} 7.
dxe5 {[%clk 0:02:52.7]} 7... dxe5 {[%clk 0:02:37.1]} 8. Qxd8 {[%clk 0:02:52.6]}
8... Rxd8 {[%clk 0:02:38]} 9. Nd5 {[%clk 0:02:52.4]} 9... Nxd5 {[%clk 0:02:35]}
10. Bxd8 {[%clk 0:02:50.5]} 10... Nb4 {[%clk 0:02:35.3]} 11. O-O-O {[%clk
0:02:46.7]} 11... Nxa2+ {[%clk 0:02:25]} 12. Kb1 {[%clk 0:02:46.3]} 12... Nb4
{[%clk 0:02:25.9]} 13. Bxc7 {[%clk 0:02:46.4]} 13... N8c6 {[%clk 0:02:25.1]} 14.
Bd6 {[%clk 0:02:44.6]} 14... Bg4 {[%clk 0:02:11]} 15. Bxb4 {[%clk 0:02:40.8]}
15... Nxb4 {[%clk 0:02:11.9]} 16. Be2 {[%clk 0:02:39.7]} 16... Nc6 {[%clk
0:02:08.2]} 17. Ng1 {[%clk 0:02:38.2]} 17... Be6 {[%clk 0:02:07.4]} 18. h3
{[%clk 0:02:35.5]} 18... Nd4 {[%clk 0:02:03.8]} 19. Bd3 {[%clk 0:02:35]} 19...
Rc8 {[%clk 0:01:59.6]} 20. Ne2 {[%clk 0:02:34.6]} 20... Nb3 {[%clk 0:01:59.6]}
21. Nc3 {[%clk 0:02:25.8]} 21... h5 {[%clk 0:01:26.2]} 22. Nd5 {[%clk
0:02:23.2]} 22... Rc5 {[%clk 0:01:26]} 23. Bc2 {[%clk 0:02:14.3]} 23... Nd4
{[%clk 0:01:23.6]} 24. b3 {[%clk 0:02:10.9]} 24... b5 {[%clk 0:01:14.1]} 25.
Rxd4 {[%clk 0:01:59.8]} 25... exd4 {[%clk 0:01:14.1]} 26. Bd3 {[%clk 0:02:00.1]}
26... bxc4 {[%clk 0:01:04.7]} 27. Bxc4 {[%clk 0:01:56.5]} 27... Kf8 {[%clk
0:00:52.3]} 28. Kc2 {[%clk 0:01:55.7]} 28... Ra5 {[%clk 0:00:52.1]} 29. b4
{[%clk 0:01:52.1]} 29... Ra3 {[%clk 0:00:50.8]} 30. Kb2 {[%clk 0:01:50.3]} 30...
Bxd5 {[%clk 0:00:37.8]} 31. Bxd5 {[%clk 0:01:43.8]} 31... Rc3 {[%clk 0:00:37.7]}
32. Rc1 {[%clk 0:01:39.9]} 32... Ke7 {[%clk 0:00:35.9]} 33. Rxc3 {[%clk
0:01:36.1]} 33... dxc3+ {[%clk 0:00:36.8]} 34. Kb3 {[%clk 0:01:35.4]} 34... g5
{[%clk 0:00:35.1]} 35. g3 {[%clk 0:01:33.4]} 35... Bd4 {[%clk 0:00:33.3]} 36. f4
{[%clk 0:01:32.7]} 36... h4 {[%clk 0:00:33.7]} 37. gxh4 {[%clk 0:01:23.9]} 37...
gxf4 {[%clk 0:00:33.5]} 38. h5 {[%clk 0:01:21.7]} 38... Kf6 {[%clk 0:00:29.5]}
39. b5 {[%clk 0:01:13.2]} 39... f3 {[%clk 0:00:21.7]} 40. e5+ {[%clk 0:01:11.7]}
40... Kxe5 {[%clk 0:00:22]} 41. Bxf3 {[%clk 0:01:12.4]} 41... Kf4 {[%clk
0:00:18.9]} 42. Bd5 {[%clk 0:01:12.2]} 42... f5 {[%clk 0:00:18.8]} 43. h6 {[%clk
0:01:11.3]} 43... Kg3 {[%clk 0:00:18.3]} 44. h7 {[%clk 0:00:49]} 44... f4 {[%clk
0:00:18.2]} 45. Kc4 {[%clk 0:00:49.4]} 45... c2 {[%clk 0:00:13]} 46. Kxd4 {[%clk
0:00:49]} 46... c1=Q {[%clk 0:00:13.1]} 47. h8=Q {[%clk 0:00:45.5]} 47... Qa1+
{[%clk 0:00:13]} 48. Kc5 {[%clk 0:00:45.9]} 48... Qxh8 {[%clk 0:00:13.9]} 0-1

[Event "Early-Titled-Tuesday-Blitz-October-17-2023"]
[Site "Chess.com"]
[Date "2023.10.17"]
[Round "4"]
[White "IamSchrodingersCat"]
[Black "salomez"]
[Result "1-0"]
[WhiteElo "2535"]
[BlackElo "2327"]
[TimeControl "180+1"]
[EndTime "8:41:18 PDT"]
[Termination "IamSchrodingersCat won on time"]

1. e3 {[%clk 0:03:00.9]} 1... e5 {[%clk 0:02:59.9]} 2. g3 {[%clk 0:03:00.9]}
2... d5 {[%clk 0:02:59.4]} 3. g4 {[%clk 0:03:01]} 3... Be6 {[%clk 0:02:53.9]} 4.
Bg2 {[%clk 0:02:59.1]} 4... Nc6 {[%clk 0:02:53.5]} 5. d4 {[%clk 0:02:50.2]} 5...
exd4 {[%clk 0:02:31.4]} 6. exd4 {[%clk 0:02:49.2]} 6... Qd7 {[%clk 0:02:30.8]}
7. h3 {[%clk 0:02:47.1]} 7... O-O-O {[%clk 0:02:30.5]} 8. Ne2 {[%clk 0:02:45.1]}
8... h5 {[%clk 0:02:30.6]} 9. gxh5 {[%clk 0:02:19.4]} 9... Nf6 {[%clk
0:02:29.9]} 10. Nbc3 {[%clk 0:02:13]} 10... Re8 {[%clk 0:02:24.6]} 11. Be3
{[%clk 0:02:09.3]} 11... Rxh5 {[%clk 0:02:16.8]} 12. Nf4 {[%clk 0:02:07.2]}
12... Rh4 {[%clk 0:02:15.9]} 13. Nxe6 {[%clk 0:02:03.6]} 13... Rxe6 {[%clk
0:02:00.5]} 14. Qd2 {[%clk 0:01:48.3]} 14... Rxd4 {[%clk 0:01:56.3]} 15. Qe2
{[%clk 0:01:37.1]} 15... Bb4 {[%clk 0:01:40.1]} 16. O-O {[%clk 0:01:33.8]} 16...
Rh4 {[%clk 0:01:34.5]} 17. Rad1 {[%clk 0:01:19.7]} 17... d4 {[%clk 0:01:22]} 18.
Qc4 {[%clk 0:01:00.4]} 18... Bxc3 {[%clk 0:00:58.6]} 19. bxc3 {[%clk 0:00:58.8]}
19... Ne5 {[%clk 0:00:57]} 20. Qb4 {[%clk 0:00:38.6]} 20... Nc6 {[%clk
0:00:37.7]} 21. Qf8+ {[%clk 0:00:30.4]} 21... Re8 {[%clk 0:00:37.5]} 22. Qxg7
{[%clk 0:00:28]} 22... Qe6 {[%clk 0:00:13.3]} 23. Qg3 {[%clk 0:00:24]} 23...
Rhh8 {[%clk 0:00:10.5]} 24. cxd4 {[%clk 0:00:19.5]} 24... Reg8 {[%clk
0:00:10.3]} 25. Qf3 {[%clk 0:00:20.1]} 25... Rxh3 {[%clk 0:00:09]} 26. d5 {[%clk
0:00:20.1]} 26... Nxd5 {[%clk 0:00:04.2]} 27. Qxd5 {[%clk 0:00:18]} 27... Qg6
{[%clk 0:00:02.7]} 28. Qd7+ {[%clk 0:00:16]} 28... Kb8 {[%clk 0:00:02.5]} 29.
Qxh3 {[%clk 0:00:16.9]} 29... Qf6 {[%clk 0:00:02]} 30. Rd5 {[%clk 0:00:13.5]}
30... Ne5 {[%clk 0:00:01.9]} 31. Rxe5 {[%clk 0:00:13.5]} 31... Qxe5 {[%clk
0:00:01.9]} 32. Rb1 {[%clk 0:00:13]} 32... b6 {[%clk 0:00:01.9]} 33. Qf3 {[%clk
0:00:12.7]} 1-0

[Event "Early-Titled-Tuesday-Blitz-October-17-2023"]
[Site "Chess.com"]
[Date "2023.10.17"]
[Round "4"]
[White "Emp3rador"]
[Black "SchmakAttack"]
[Result "0-1"]
[WhiteElo "2541"]
[BlackElo "2729"]
[TimeControl "180+1"]
[EndTime "8:41:21 PDT"]
[Termination "SchmakAttack won on time"]

1. e4 {[%clk 0:03:00.9]} 1... e5 {[%clk 0:03:00.1]} 2. Nf3 {[%clk 0:02:59.7]}
2... Nc6 {[%clk 0:03:00.3]} 3. d4 {[%clk 0:02:57.9]} 3... exd4 {[%clk
0:03:00.3]} 4. Nxd4 {[%clk 0:02:58.8]} 4... Qf6 {[%clk 0:03:00.3]} 5. Nb3 {[%clk
0:02:51.2]} 5... Bb4+ {[%clk 0:02:53.1]} 6. Nc3 {[%clk 0:02:26.8]} 6... Bxc3+
{[%clk 0:02:50]} 7. bxc3 {[%clk 0:02:27.7]} 7... Qxc3+ {[%clk 0:02:50.2]} 8. Bd2
{[%clk 0:02:28]} 8... Qe5 {[%clk 0:02:44.5]} 9. Bd3 {[%clk 0:02:22.9]} 9... d6
{[%clk 0:02:40.4]} 10. O-O {[%clk 0:02:17.9]} 10... Nf6 {[%clk 0:02:39.9]} 11.
f4 {[%clk 0:02:14.1]} 11... Qe7 {[%clk 0:02:39.8]} 12. Bc3 {[%clk 0:02:09.9]}
12... O-O {[%clk 0:02:29.8]} 13. Qf3 {[%clk 0:02:09.2]} 13... Bg4 {[%clk
0:01:55.4]} 14. Bxf6 {[%clk 0:02:04.8]} 14... Qxf6 {[%clk 0:01:52.9]} 15. Qxg4
{[%clk 0:02:02.6]} 15... a5 {[%clk 0:01:52]} 16. a4 {[%clk 0:01:53.4]} 16... Nb4
{[%clk 0:01:50.6]} 17. Rad1 {[%clk 0:01:44.9]} 17... Rfe8 {[%clk 0:01:37.5]} 18.
e5 {[%clk 0:00:56.3]} 18... dxe5 {[%clk 0:01:37.5]} 19. fxe5 {[%clk 0:00:57.2]}
19... Qxe5 {[%clk 0:01:38.1]} 20. Bc4 {[%clk 0:00:56.7]} 20... Rf8 {[%clk
0:01:27.1]} 21. Rd7 {[%clk 0:00:51.8]} 21... Nxc2 {[%clk 0:01:20.4]} 22. Rdxf7
{[%clk 0:00:50.1]} 22... Rxf7 {[%clk 0:01:20.2]} 23. Rxf7 {[%clk 0:00:40.9]}
23... Kh8 {[%clk 0:01:20.3]} 24. Qf5 {[%clk 0:00:22.2]} 24... Qe1+ {[%clk
0:00:54]} 25. Qf1 {[%clk 0:00:21.8]} 25... Qb4 {[%clk 0:00:53.6]} 26. Qd3 {[%clk
0:00:10.4]} 26... Ne3 {[%clk 0:00:43.4]} 27. Qxe3 {[%clk 0:00:08.2]} 27... Qxc4
{[%clk 0:00:44]} 28. Rf1 {[%clk 0:00:07.3]} 28... b6 {[%clk 0:00:40.7]} 29. Nd4
{[%clk 0:00:07.8]} 29... Qxa4 {[%clk 0:00:35.6]} 30. Qe5 {[%clk 0:00:07.8]}
30... Qd7 {[%clk 0:00:20.3]} 31. Ne6 {[%clk 0:00:08.1]} 31... Re8 {[%clk
0:00:18.4]} 32. h3 {[%clk 0:00:05.5]} 32... h6 {[%clk 0:00:17.7]} 33. Re1 {[%clk
0:00:05.4]} 33... a4 {[%clk 0:00:15.7]} 34. Kf2 {[%clk 0:00:04]} 34... a3 {[%clk
0:00:15.6]} 35. Qxc7 {[%clk 0:00:04.4]} 35... Qxc7 {[%clk 0:00:14.7]} 36. Nxc7
{[%clk 0:00:04.7]} 36... Rxe1 {[%clk 0:00:15.2]} 37. Kxe1 {[%clk 0:00:05.4]}
37... a2 {[%clk 0:00:15.9]} 38. Kf2 {[%clk 0:00:06.1]} 38... a1=Q {[%clk
0:00:16.5]} 0-1

[Event "Early-Titled-Tuesday-Blitz-October-17-2023"]
[Site "Chess.com"]
[Date "2023.10.17"]
[Round "4"]
[White "MikeSailer"]
[Black "AlivodicDario"]
[Result "0-1"]
[WhiteElo "2092"]
[BlackElo "2437"]
[TimeControl "180+1"]
[EndTime "8:41:23 PDT"]
[Termination "AlivodicDario won on time"]

1. g3 {[%clk 0:02:57.9]} 1... d5 {[%clk 0:02:59.9]} 2. Bg2 {[%clk 0:02:57.8]}
2... c5 {[%clk 0:03:00.2]} 3. c4 {[%clk 0:02:58.4]} 3... d4 {[%clk 0:02:59.8]}
4. d3 {[%clk 0:02:55.5]} 4... Nc6 {[%clk 0:02:59.6]} 5. Nf3 {[%clk 0:02:55.5]}
5... e5 {[%clk 0:02:59.8]} 6. b4 {[%clk 0:02:54.6]} 6... cxb4 {[%clk 0:02:57.1]}
7. a3 {[%clk 0:02:54.8]} 7... b3 {[%clk 0:02:57.3]} 8. Qxb3 {[%clk 0:02:54.1]}
8... Nf6 {[%clk 0:02:56.1]} 9. O-O {[%clk 0:02:54.1]} 9... Nd7 {[%clk
0:02:56.1]} 10. a4 {[%clk 0:02:40.3]} 10... Nc5 {[%clk 0:02:51.5]} 11. Qc2
{[%clk 0:02:37]} 11... Bd6 {[%clk 0:02:49]} 12. Nbd2 {[%clk 0:02:26.9]} 12...
O-O {[%clk 0:02:42.8]} 13. Nb3 {[%clk 0:02:27]} 13... h6 {[%clk 0:02:29.2]} 14.
Nxc5 {[%clk 0:02:26.9]} 14... Bxc5 {[%clk 0:02:29.1]} 15. Ba3 {[%clk 0:02:23.3]}
15... Qd6 {[%clk 0:02:29.5]} 16. Bxc5 {[%clk 0:02:23]} 16... Qxc5 {[%clk
0:02:30.4]} 17. Nd2 {[%clk 0:02:23.3]} 17... f5 {[%clk 0:02:26.5]} 18. Rab1
{[%clk 0:02:17.8]} 18... a6 {[%clk 0:02:26.2]} 19. Qb3 {[%clk 0:02:09.5]} 19...
Rf7 {[%clk 0:02:13.8]} 20. Qb6 {[%clk 0:02:07.9]} 20... Qd6 {[%clk 0:02:09.3]}
21. Bd5 {[%clk 0:02:02.7]} 21... Be6 {[%clk 0:02:08.6]} 22. Bxe6 {[%clk
0:01:58.3]} 22... Qxe6 {[%clk 0:02:09.5]} 23. Qc5 {[%clk 0:01:55.4]} 23... Re8
{[%clk 0:01:59.8]} 24. Rb6 {[%clk 0:01:52.5]} 24... Ree7 {[%clk 0:01:57.5]} 25.
Rfb1 {[%clk 0:01:48]} 25... e4 {[%clk 0:01:55.5]} 26. Qd5 {[%clk 0:01:12.6]}
26... e3 {[%clk 0:01:39.7]} 27. Qxe6 {[%clk 0:01:06.8]} 27... Rxe6 {[%clk
0:01:40.6]} 28. fxe3 {[%clk 0:00:47.6]} 28... dxe3 {[%clk 0:01:37.7]} 29. Nf3
{[%clk 0:00:47.5]} 29... Ree7 {[%clk 0:01:34.2]} 30. d4 {[%clk 0:00:46.3]} 30...
g5 {[%clk 0:01:30]} 31. d5 {[%clk 0:00:41.2]} 31... Na5 {[%clk 0:01:30]} 32. c5
{[%clk 0:00:30]} 32... Nc4 {[%clk 0:01:24.4]} 33. R6b4 {[%clk 0:00:26.8]} 33...
Nd2 {[%clk 0:01:22.7]} 34. Nxd2 {[%clk 0:00:13.9]} 34... exd2 {[%clk 0:01:23.5]}
35. Kf1 {[%clk 0:00:08.9]} 35... Re5 {[%clk 0:01:18.9]} 36. Rd4 {[%clk
0:00:06.9]} 36... Rd7 {[%clk 0:01:18.3]} 37. d6 {[%clk 0:00:03.5]} 37... Rxc5
{[%clk 0:01:18.2]} 38. Rxd2 {[%clk 0:00:03.9]} 38... b5 {[%clk 0:01:13.7]} 39.
axb5 {[%clk 0:00:04]} 39... axb5 {[%clk 0:01:14.6]} 40. Rbd1 {[%clk 0:00:03]}
40... Kf7 {[%clk 0:01:13.5]} 41. Kf2 {[%clk 0:00:02.6]} 41... Ke6 {[%clk
0:01:13.6]} 42. Kf3 {[%clk 0:00:03.1]} 42... Rc3+ {[%clk 0:01:07.2]} 43. e3
{[%clk 0:00:01.6]} 43... b4 {[%clk 0:01:06.4]} 44. Rb1 {[%clk 0:00:01.2]} 44...
b3 {[%clk 0:01:02.9]} 45. Rdb2 {[%clk 0:00:01.1]} 45... Rxd6 {[%clk 0:00:58.7]}
46. Rxb3 {[%clk 0:00:01.6]} 46... Rc2 {[%clk 0:00:59.4]} 47. Rb6 {[%clk
0:00:01.4]} 47... Rxh2 {[%clk 0:00:53]} 0-1

[Event "Early-Titled-Tuesday-Blitz-October-17-2023"]
[Site "Chess.com"]
[Date "2023.10.17"]
[Round "4"]
[White "Actuary44"]
[Black "GaiozNigalidze"]
[Result "0-1"]
[WhiteElo "2532"]
[BlackElo "2715"]
[TimeControl "180+1"]
[EndTime "8:41:25 PDT"]
[Termination "GaiozNigalidze won by checkmate"]

1. e4 {[%clk 0:03:00.9]} 1... c5 {[%clk 0:03:00.1]} 2. d4 {[%clk 0:03:01.2]}
2... cxd4 {[%clk 0:03:00]} 3. c3 {[%clk 0:03:01.9]} 3... dxc3 {[%clk 0:03:00.9]}
4. Nxc3 {[%clk 0:03:02.6]} 4... Nc6 {[%clk 0:03:01.3]} 5. f4 {[%clk 0:03:03.3]}
5... e6 {[%clk 0:03:01.5]} 6. Nf3 {[%clk 0:03:04]} 6... a6 {[%clk 0:03:01.9]} 7.
Bd3 {[%clk 0:03:04.7]} 7... Bc5 {[%clk 0:03:01.2]} 8. Qe2 {[%clk 0:03:04.2]}
8... b5 {[%clk 0:03:01.1]} 9. Bd2 {[%clk 0:03:03.6]} 9... Bb7 {[%clk 0:02:53.7]}
10. O-O-O {[%clk 0:03:03.5]} 10... Nge7 {[%clk 0:02:24.3]} 11. e5 {[%clk
0:03:02.8]} 11... d5 {[%clk 0:02:10.7]} 12. exd6 {[%clk 0:02:40.3]} 12... Bxd6
{[%clk 0:02:10.5]} 13. Kb1 {[%clk 0:02:39.8]} 13... Nb4 {[%clk 0:01:52]} 14. Be4
{[%clk 0:02:33.6]} 14... Bxe4+ {[%clk 0:01:34.9]} 15. Nxe4 {[%clk 0:02:34.5]}
15... Nbd5 {[%clk 0:01:33.3]} 16. Ba5 {[%clk 0:02:08]} 16... Qb8 {[%clk
0:01:28.8]} 17. g3 {[%clk 0:01:12.7]} 17... O-O {[%clk 0:01:25.6]} 18. Nd4
{[%clk 0:01:00.4]} 18... h6 {[%clk 0:00:52.7]} 19. Rc1 {[%clk 0:00:58.9]} 19...
Bb4 {[%clk 0:00:46.9]} 20. Bxb4 {[%clk 0:00:54.3]} 20... Nxb4 {[%clk 0:00:47.8]}
21. Nc5 {[%clk 0:00:46.7]} 21... Ra7 {[%clk 0:00:47.4]} 22. Rhd1 {[%clk
0:00:33.2]} 22... Nbd5 {[%clk 0:00:39.3]} 23. Ndxe6 {[%clk 0:00:29.7]} 23...
fxe6 {[%clk 0:00:39.2]} 24. Qxe6+ {[%clk 0:00:30.6]} 24... Kh8 {[%clk
0:00:25.2]} 25. Nd7 {[%clk 0:00:29.3]} 25... Rxd7 {[%clk 0:00:17.4]} 26. Qxd7
{[%clk 0:00:30.2]} 26... Qa8 {[%clk 0:00:15.5]} 27. a3 {[%clk 0:00:23.9]} 27...
Rd8 {[%clk 0:00:15.6]} 28. Qe6 {[%clk 0:00:23.3]} 28... a5 {[%clk 0:00:15.7]}
29. f5 {[%clk 0:00:22.1]} 29... b4 {[%clk 0:00:15.5]} 30. f6 {[%clk 0:00:21.5]}
30... gxf6 {[%clk 0:00:15.3]} 31. a4 {[%clk 0:00:12.4]} 31... b3 {[%clk
0:00:15.4]} 32. Rd3 {[%clk 0:00:12.1]} 32... Qb7 {[%clk 0:00:13.3]} 33. Qh3
{[%clk 0:00:08.8]} 33... Ng8 {[%clk 0:00:12.4]} 34. Rcd1 {[%clk 0:00:07.4]}
34... Qh7 {[%clk 0:00:12.4]} 35. Ka1 {[%clk 0:00:07.1]} 35... Nb4 {[%clk
0:00:11.3]} 36. Rxd8 {[%clk 0:00:03.4]} 36... Nc2+ {[%clk 0:00:11.7]} 37. Kb1
{[%clk 0:00:04.1]} 37... Na3+ {[%clk 0:00:12.1]} 38. Ka1 {[%clk 0:00:04.7]}
38... Qb1+ {[%clk 0:00:12.4]} 39. Rxb1 {[%clk 0:00:04.2]} 39... Nc2# {[%clk
0:00:13.3]} 0-1

[Event "Early-Titled-Tuesday-Blitz-October-17-2023"]
[Site "Chess.com"]
[Date "2023.10.17"]
[Round "4"]
[White "Fonsofan"]
[Black "Cheer_Down"]
[Result "1-0"]
[WhiteElo "2677"]
[BlackElo "2514"]
[TimeControl "180+1"]
[EndTime "8:41:25 PDT"]
[Termination "Fonsofan won by checkmate"]

1. e4 {[%clk 0:02:53.6]} 1... e5 {[%clk 0:02:59.4]} 2. Nf3 {[%clk 0:02:53.5]}
2... Nc6 {[%clk 0:02:58.8]} 3. Bc4 {[%clk 0:02:54]} 3... Nf6 {[%clk 0:02:57.6]}
4. d3 {[%clk 0:02:50.8]} 4... Bc5 {[%clk 0:02:56.4]} 5. c3 {[%clk 0:02:51.3]}
5... O-O {[%clk 0:02:52.6]} 6. Nbd2 {[%clk 0:02:49.8]} 6... d5 {[%clk
0:02:50.6]} 7. Bb3 {[%clk 0:02:48]} 7... Be6 {[%clk 0:02:45.5]} 8. O-O {[%clk
0:02:44.4]} 8... h6 {[%clk 0:02:42.9]} 9. exd5 {[%clk 0:02:41.5]} 9... Bxd5
{[%clk 0:02:42.5]} 10. Re1 {[%clk 0:02:41.8]} 10... Re8 {[%clk 0:02:42.1]} 11.
Ba4 {[%clk 0:02:37.6]} 11... e4 {[%clk 0:02:33]} 12. dxe4 {[%clk 0:02:25.9]}
12... Nxe4 {[%clk 0:02:28.9]} 13. Nxe4 {[%clk 0:02:25.2]} 13... Bxe4 {[%clk
0:02:23.6]} 14. Be3 {[%clk 0:02:24.1]} 14... Bb6 {[%clk 0:02:19.4]} 15. Nd2
{[%clk 0:02:11.8]} 15... Bd3 {[%clk 0:02:14.9]} 16. Bxc6 {[%clk 0:01:51]} 16...
bxc6 {[%clk 0:02:14]} 17. Qf3 {[%clk 0:01:51.4]} 17... Qd5 {[%clk 0:02:02.3]}
18. Qg3 {[%clk 0:01:17]} 18... Rad8 {[%clk 0:01:56.9]} 19. Bxh6 {[%clk
0:01:10.1]} 19... Bg6 {[%clk 0:01:54.4]} 20. Bf4 {[%clk 0:01:09.5]} 20... Rxe1+
{[%clk 0:01:42.9]} 21. Rxe1 {[%clk 0:01:10.4]} 21... Qxa2 {[%clk 0:01:42.7]} 22.
Bxc7 {[%clk 0:00:46.7]} 22... Rc8 {[%clk 0:01:34.9]} 23. Bxb6 {[%clk 0:00:38.8]}
23... axb6 {[%clk 0:01:35.8]} 24. Qg4 {[%clk 0:00:31.7]} 24... Rd8 {[%clk
0:01:32.4]} 25. Qh4 {[%clk 0:00:28.2]} 25... Ra8 {[%clk 0:01:24.3]} 26. Qb4
{[%clk 0:00:26.8]} 26... b5 {[%clk 0:01:13.7]} 27. Nf3 {[%clk 0:00:20.4]} 27...
Qd5 {[%clk 0:01:03.9]} 28. h3 {[%clk 0:00:17.4]} 28... f6 {[%clk 0:00:57]} 29.
Qd4 {[%clk 0:00:15.8]} 29... Bf7 {[%clk 0:00:55.7]} 30. Qxd5 {[%clk 0:00:15.3]}
30... Bxd5 {[%clk 0:00:56.6]} 31. Nd4 {[%clk 0:00:15.8]} 31... Ra2 {[%clk
0:00:56.2]} 32. Re2 {[%clk 0:00:15.9]} 32... c5 {[%clk 0:00:52.2]} 33. Nf5
{[%clk 0:00:12.2]} 33... Kf7 {[%clk 0:00:48.3]} 34. Nd6+ {[%clk 0:00:10.8]}
34... Kg6 {[%clk 0:00:46.4]} 35. Rd2 {[%clk 0:00:11.3]} 35... Bc6 {[%clk
0:00:44.2]} 36. g4 {[%clk 0:00:11.3]} 36... Kg5 {[%clk 0:00:38.7]} 37. Kh2
{[%clk 0:00:10.7]} 37... Kf4 {[%clk 0:00:38.6]} 38. Nf5 {[%clk 0:00:08.1]} 38...
Ra1 {[%clk 0:00:36.7]} 39. Ng3 {[%clk 0:00:07.8]} 39... Rb1 {[%clk 0:00:33.6]}
40. Nh5+ {[%clk 0:00:05.3]} 40... Kg5 {[%clk 0:00:25.9]} 41. f4+ {[%clk
0:00:04.7]} 41... Kh4 {[%clk 0:00:25.3]} 42. Ng3 {[%clk 0:00:05.3]} 42... b4
{[%clk 0:00:22.1]} 43. Nf5# {[%clk 0:00:04.8]} 1-0

[Event "Early-Titled-Tuesday-Blitz-October-17-2023"]
[Site "Chess.com"]
[Date "2023.10.17"]
[Round "4"]
[White "Aleksandar-Topalov"]
[Black "Chessdreamer2020"]
[Result "1-0"]
[WhiteElo "2350"]
[BlackElo "2504"]
[TimeControl "180+1"]
[EndTime "8:41:26 PDT"]
[Termination "Aleksandar-Topalov won by checkmate"]

1. b3 {[%clk 0:03:00.9]} 1... c5 {[%clk 0:02:54.3]} 2. Bb2 {[%clk 0:03:00.5]}
2... Nc6 {[%clk 0:02:55.2]} 3. Nf3 {[%clk 0:03:00.3]} 3... d5 {[%clk 0:02:54.2]}
4. e3 {[%clk 0:02:58.8]} 4... a6 {[%clk 0:02:54.7]} 5. d4 {[%clk 0:02:54.7]}
5... Nf6 {[%clk 0:02:49.7]} 6. Be2 {[%clk 0:02:53.2]} 6... Bg4 {[%clk 0:02:49]}
7. O-O {[%clk 0:02:52.9]} 7... e6 {[%clk 0:02:49.5]} 8. Nbd2 {[%clk 0:02:52.8]}
8... Be7 {[%clk 0:02:47.5]} 9. a3 {[%clk 0:02:50.9]} 9... O-O {[%clk 0:02:47.2]}
10. c4 {[%clk 0:02:51.2]} 10... cxd4 {[%clk 0:02:47.2]} 11. exd4 {[%clk
0:02:50.7]} 11... Rc8 {[%clk 0:02:46.2]} 12. c5 {[%clk 0:02:48]} 12... Ne4
{[%clk 0:02:42.3]} 13. b4 {[%clk 0:02:47.4]} 13... f5 {[%clk 0:02:40.5]} 14. Ne1
{[%clk 0:02:27.9]} 14... Bxe2 {[%clk 0:02:39.3]} 15. Qxe2 {[%clk 0:02:27.7]}
15... Bf6 {[%clk 0:02:22.9]} 16. Nb3 {[%clk 0:02:22.6]} 16... Re8 {[%clk
0:02:15]} 17. Nd3 {[%clk 0:02:18.7]} 17... Qc7 {[%clk 0:01:51.3]} 18. f3 {[%clk
0:02:08.9]} 18... Ng5 {[%clk 0:01:50.3]} 19. a4 {[%clk 0:02:05.7]} 19... Qd7
{[%clk 0:01:16.1]} 20. b5 {[%clk 0:01:42.1]} 20... axb5 {[%clk 0:01:17]} 21.
axb5 {[%clk 0:01:42.5]} 21... Ne7 {[%clk 0:01:17.5]} 22. Nf4 {[%clk 0:01:16]}
22... Ng6 {[%clk 0:01:15.8]} 23. Nxg6 {[%clk 0:01:15.4]} 23... hxg6 {[%clk
0:01:16.7]} 24. Ra7 {[%clk 0:01:06.5]} 24... Ra8 {[%clk 0:01:10.5]} 25. Rfa1
{[%clk 0:01:05.3]} 25... Rxa7 {[%clk 0:01:10.8]} 26. Rxa7 {[%clk 0:01:05.3]}
26... Qc8 {[%clk 0:01:11.1]} 27. Na5 {[%clk 0:00:29.7]} 27... Re7 {[%clk
0:01:10.1]} 28. g3 {[%clk 0:00:23.9]} 28... Nf7 {[%clk 0:01:10.2]} 29. f4 {[%clk
0:00:23.3]} 29... g5 {[%clk 0:01:08.6]} 30. c6 {[%clk 0:00:18]} 30... bxc6
{[%clk 0:01:04.6]} 31. Rxe7 {[%clk 0:00:17.7]} 31... Bxe7 {[%clk 0:01:03.6]} 32.
Nxc6 {[%clk 0:00:18]} 32... Bd6 {[%clk 0:01:00.5]} 33. Bc3 {[%clk 0:00:12.9]}
33... gxf4 {[%clk 0:00:59.7]} 34. gxf4 {[%clk 0:00:13.1]} 34... Bxf4 {[%clk
0:01:00]} 35. Ne7+ {[%clk 0:00:13.3]} 35... Kf8 {[%clk 0:00:59.3]} 36. Nxc8
{[%clk 0:00:13.6]} 36... Nd8 {[%clk 0:00:59.5]} 37. b6 {[%clk 0:00:13.7]} 37...
Ke8 {[%clk 0:00:58.9]} 38. Qb5+ {[%clk 0:00:11.4]} 38... Kf7 {[%clk 0:00:58]}
39. b7 {[%clk 0:00:11.9]} 39... Nxb7 {[%clk 0:00:57.2]} 40. Qxb7+ {[%clk
0:00:12.8]} 40... Kf6 {[%clk 0:00:58.1]} 41. Bb4 {[%clk 0:00:11]} 41... Be3+
{[%clk 0:00:57.4]} 42. Kg2 {[%clk 0:00:10.7]} 42... Bxd4 {[%clk 0:00:58.3]} 43.
Qe7+ {[%clk 0:00:10.6]} 43... Ke5 {[%clk 0:00:58.7]} 44. Qd6+ {[%clk 0:00:09.8]}
44... Ke4 {[%clk 0:00:59.6]} 45. Qxe6+ {[%clk 0:00:09.7]} 45... Kd3 {[%clk
0:00:59.2]} 46. Qxd5 {[%clk 0:00:09.8]} 46... Ke3 {[%clk 0:00:58.7]} 47. Qxf5
{[%clk 0:00:09.4]} 47... g6 {[%clk 0:00:57.9]} 48. Qxg6 {[%clk 0:00:09.4]} 48...
Ke2 {[%clk 0:00:57.1]} 49. Nd6 {[%clk 0:00:09.6]} 49... Be3 {[%clk 0:00:57.4]}
50. Nc4 {[%clk 0:00:08.8]} 50... Bd4 {[%clk 0:00:52.3]} 51. Qe4+ {[%clk
0:00:08.2]} 51... Kd1 {[%clk 0:00:51.8]} 52. Qxd4+ {[%clk 0:00:08.3]} 52... Kc1
{[%clk 0:00:52.7]} 53. Qd2+ {[%clk 0:00:08.3]} 53... Kb1 {[%clk 0:00:53.6]} 54.
Qb2# {[%clk 0:00:08.5]} 1-0